Cogmind - Beta 14 @@@ ROGUE MODE // 2024.08.30 @ 10:36:43 Player: Smile Result: Destroyed by 8R-AWN with 8R-AWN's Boregun Performance ------------- Evolutions (0) 0 Regions Visited (3) 600 Robots Destroyed (6) 30 Value Destroyed (73) 73 Prototype IDs (3) 60 Alien Tech Used (0) 0 Bonus (445) 445 TOTAL SCORE: 1208 Bonus ------- Follower Combat Kills 145 Aligned with FarCom 300 Cogmind --------- Core Integrity 0/250 Matter 179/300 Energy 100/100 System Corruption 0% Temperature Cool (0) Movement Core (250) Ox4 Location -10/Exiles Parts ------- > --- POWER (1) -------- (None) > --- PROPULSION (2) --- (None) > --- UTILITY (2) ------ Medium Storage Unit > --- WEAPON (2) ------- Particle Gun > --- INVENTORY (10) --- Light Ion Engine Medium Armor Plating Medium Armor Plating Medium Armor Plating Light EM Pulse Cannon Assault Rifle Light Cannon Datajack Mining Laser Peak State ------------ > --- POWER ------------ Light Ion Engine > --- PROPULSION ------- Light Treads Advanced Treads > --- UTILITY ---------- Medium Storage Unit Medium Armor Plating > --- WEAPON ----------- Shock Rifle Flak Cannon > --- INVENTORY -------- Light Ion Engine Medium Storage Unit Medium Armor Plating Medium Armor Plating Medium Armor Plating Medium Armor Plating Particle Gun Light EM Pulse Cannon Assault Rifle Light Cannon [Rating: 15] Favorites ----------- Power Light Ion Engine Engine Light Ion Engine Propulsion Light Treads Treads Light Treads Leg Aluminum Leg Utility Medium Armor Plating Storage Medium Storage Unit Processor Signal Interpreter Protection Medium Armor Plating Weapon Assault Rifle Energy Gun Shock Rifle Energy Cannon Light EM Pulse Cannon Ballistic Gun Assault Rifle Ballistic Cannon Light Cannon Special Melee Weapon Datajack Build | -11 -10 -10 -10 ------- Run | Yrd Mat Min Exi Slots Evolved . | . . . . Power . | . . . . Propulsion . | . . . . Utility . | . . . . Weapon . | . . . . Parts Attached 32 | 6 14 10 2 Power 3 | 1 . 1 1 Engine 3 | 1 . 1 1 Core . | . . . . Reactor . | . . . . Propulsion 5 | 2 2 1 . Treads 3 | . 2 1 . Leg 2 | 2 . . . Wheel . | . . . . Hover . | . . . . Flight . | . . . . Utility 8 | 1 6 1 . Device . | . . . . Storage 3 | 1 2 . . Processor 1 | . 1 . . Hackware . | . . . . Protection 4 | . 3 1 . Artifact . | . . . . Weapon 16 | 2 6 7 1 Energy Gun 4 | . 1 2 1 Energy Cannon 1 | . 1 . . Ballistic Gun 3 | 2 1 . . Ballistic Cannon 6 | . 3 3 . Launcher . | . . . . Special Weapon . | . . . . Impact Weapon . | . . . . Slashing Weapon . | . . . . Piercing Weapon . | . . . . Special Melee Weapon 2 | . . 2 . Unidentified Prototypes . | . . . . Parts Lost 7 | . . 1 6 Power 2 | . . 1 1 Propulsion 2 | . . . 2 Utility 1 | . . . 1 Weapon 2 | . . . 2 Highest Loss Streak 6 | . . 1 6 To Critical Strikes 4 | . . . 4 Average Slot Usage (%) 98 | . 98 99 96 Engine 13 | . 14 13 14 Treads 17 | . 6 28 27 Leg 10 | . 21 . . Storage 14 | . 14 14 14 Protection 13 | . 12 14 12 Energy Gun 5 | . . 8 12 Energy Cannon 1 | . 3 . . Ballistic Gun 9 | . 15 5 . Ballistic Cannon 11 | . 8 13 14 Peak Build Rating 15 | 6 10 15 15 Average Rating 10 | 5 8 12 14 On Entrance 7 | . 6 9 15 Naked Turns . | . . . . Heaviest Build 29 | 11 27 29 29 Greatest Support 42 | 20 40 42 42 Greatest Overweight (x) 2 | 2 1 . . Average Overweight (x) . | . . . . Largest Inventory Capacity 10 | 8 10 10 10 Average Capacity 9 | 7 9 10 10 Most Carried 10 | 2 10 10 10 Average Carried 9 | 1 8 9 9 Final Capacity 10 | 8 10 10 10 Final Carried 10 | 2 10 10 9 Class Distribution -------------------- 100% | Mutant Dominant Class ---------------- Mutant | -10/Materials Mutant | -10/Mines Mutant | -10/Exiles Resources | -11 -10 -10 -10 ----------- Run | Yrd Mat Min Exi Matter Collected 706 | 229 250 191 36 Remotely . | . . . . Salvage Created 189 | . 99 36 54 Parts 9 | . 6 3 . Haulers Intercepted 1 | . 1 . . Recyclers Shooed 2 | . 1 1 . Parts Field Recycled . | . . . . Retrieved Matter . | . . . . Parts Self-Destructed . | . . . . Prevented . | . . . . Kills | -11 -10 -10 -10 ------- Run | Yrd Mat Min Exi Combat Hostiles Destroyed 9 | . 3 1 5 Guns 4 | . 1 1 2 Cannons 5 | . 2 . 3 Classes Destroyed 5 | . 2 2 1 Tunneler 1 | . . 1 . Hauler 1 | . 1 . . Swarmer 3 | . 3 . . Grunt 1 | . . 1 . Assembled 5 | . . . 5 Best Kill Streak 5 | . 3 1 5 Combat Bots Only 5 | . 3 1 5 Max Kills in Single Turn 1 | . 1 1 1 Gunslinging . | . . . . Exploded . | . . . . Melee . | . . . . Uniques/NPCs Destroyed . | . . . . Combat | -11 -10 -10 -10 -------- Run | Yrd Mat Min Exi Hostile Shots Fired 108 | . 34 16 58 Missed 25 | . 8 3 14 Damage Taken 1178 | . 216 190 772 Core 269 | . 16 31 222 Absorbed by Shields . | . . . . Core Remaining (%) 100 | 100 . . . Volleys Fired 60 | . 22 16 22 Largest 2 | . 2 2 2 Hottest 109 | . 76 94 109 Shots Fired 111 | . 44 32 35 Gun 54 | . 25 16 13 Cannon 57 | . 19 16 22 Launcher . | . . . . Special . | . . . . Kinetic 87 | . 34 31 22 Thermal 2 | . . . 2 Explosive . | . . . . Electromagnetic 22 | . 10 1 11 Robot Hit Streak 6 | . 5 6 5 Robot Miss Streak 7 | . 5 3 7 Penetration Max . | . . . . Secondary Targets . | . . . . Shots Hit Robots 58 | . 15 22 21 Core Hits 29 | . 5 6 18 Critical Kills . | . . . . Critical Parts Destroyed . | . . . . Critical Strikes 1 | . . 1 . Blast 1 | . . 1 . Melee Attacks . | . . . . Impact . | . . . . Slashing . | . . . . Piercing . | . . . . Sneak Attacks . | . . . . Combat Hostiles . | . . . . Follow-up Attacks . | . . . . Damage Inflicted 916 | . 228 328 360 Guns 309 | . 121 127 61 Cannons 607 | . 107 201 299 Explosions . | . . . . Melee . | . . . . Ramming . | . . . . Kinetic 788 | . 161 328 299 Thermal 1 | . . . 1 Explosive . | . . . . Electromagnetic 127 | . 67 . 60 Impact . | . . . . Slashing . | . . . . Piercing . | . . . . Highest Corruption . | . . . . Average Corruption . | . . . . Corruption Purged . | . . . . Corruption Blocked . | . . . . Overload Shots . | . . . . Overflow Damage . | . . . . Projectiles . | . . . . Explosions . | . . . . Melee . | . . . . Knockbacks 14 | . . 2 12 Impact . | . . . . Kinetic 11 | . . 1 10 Secondary 3 | . . 1 2 Self-Inflicted Damage . | . . . . Shots . | . . . . Rammed . | . . . . Targets Rammed . | . . . . Kicked . | . . . . Crushed . | . . . . Highest Temperature 343 | . 168 73 343 Average Temperature 114 | . 63 31 201 Received Heat Transfer 110 | . . 90 20 Effects 4 | . . . 4 Interference 2 | . . . 2 Damage (minor) 2 | . . . 2 Siege Activations . | . . . . Robots Corrupted . | . . . . Combat Hostiles . | . . . . Parts Fried . | . . . . Impact Corruptions . | . . . . Robots Melted . | . . . . Combat Hostiles . | . . . . Parts Melted . | . . . . Heat Transferred 9 | . . . 9 Parts Sabotaged . | . . . . Parts Stolen . | . . . . Parts Stripped . | . . . . Power Chain Reactions . | . . . . Alert | -11 -10 -10 -10 ------- Run | Yrd Mat Min Exi Peak Influence 168 | . 77 168 . Initial . | . . . . Average 21 | . 29 12 . Maximum Alert Level . | . . . . Low Security (%) 100 | 100 100 100 . Level 1 . | . . . . Level 2 . | . . . . Level 3 . | . . . . Level 4 . | . . . . Level 5 . | . . . . High Security . | . . . . Max Security . | . . . . Squads Dispatched 2 | . 1 1 . Investigation . | . . . . Extermination . | . . . . Reinforcement 1 | . 1 . . Assault 1 | . . 1 . Garrison . | . . . . Intercept . | . . . . Searches Triggered . | . . . . Construction Impeded . | . . . . Haulers Reinforced . | . . . . Active Scanning Responses . | . . . . Cargo Convoy Interrupts . | . . . . Stealth | -11 -10 -10 -10 --------- Run | Yrd Mat Min Exi Distress Signals 2 | . 1 1 . Communications Jammed . | . . . . Distress Signals . | . . . . Times Spotted 20 | . 5 7 8 Peak Tracking Total 9 | . 3 4 9 Tactical Retreats 1 | . . 1 . Traps | -11 -10 -10 -10 ------- Run | Yrd Mat Min Exi Traps Triggered 1 | . . 1 . Indirectly . | . . . . Trap Hack Attempts . | . . . . Triggered . | . . . . Disarmed . | . . . . Reprogrammed . | . . . . Reused . | . . . . Traps Extracted . | . . . . Installed . | . . . . Triggered . | . . . . Machines | -11 -10 -10 -10 ---------- Run | Yrd Mat Min Exi Machines Disabled 3 | . . . 3 Max in Single Turn 1 | . . . 1 Machines Repaired . | . . . . Machines Dismantled . | . . . . Machines Sabotaged . | . . . . Overloaded Fab Kills . | . . . . Hacking | -11 -10 -10 -10 --------- Run | Yrd Mat Min Exi Machines Accessed 7 | . 5 1 1 Terminals 5 | . 5 . . Fabricators . | . . . . Repair Stations . | . . . . Recycling Units . | . . . . Scanalyzers . | . . . . Garrison Access . | . . . . Total Hacks 25 | . 15 1 9 Successful 20 | . 10 1 9 Failed 5 | . 5 . . Catastrophic 5 | . 5 . . Database Lockouts . | . . . . Manual 4 | . . 2 2 Terminals 15 | . 15 . . Fabricators . | . . . . Repair Stations . | . . . . Recycling Units . | . . . . Scanalyzers . | . . . . Garrison Access . | . . . . Terminal Hacks 20 | . 10 1 9 Record 13 | . 4 . 9 Prototype ID Bank 2 | . 2 . . Open Door 1 | . . 1 . Emergency Access Points 1 | . 1 . . Repair Station Index 1 | . 1 . . Alert Level 1 | . 1 . . Dispatch Records 1 | . 1 . . Fabricator Hacks . | . . . . Repair Station Hacks . | . . . . Recycling Unit Hacks . | . . . . Scanalyzer . | . . . . Garrison Access Hacks . | . . . . Unauthorized Hacks . | . . . . Terminals . | . . . . Fabricators . | . . . . Repair Stations . | . . . . Recycling Units . | . . . . Scanalyzers . | . . . . Garrison Access . | . . . . Data Cores Recovered . | . . . . Used . | . . . . Hacking Detections 4 | . 4 . . Full Trace Events . | . . . . Feedback Events . | . . . . Feedback Blocked . | . . . . Robot Schematics Acquired . | . . . . Robots Built . | . . . . Authchips . | . . . . Time . | . . . . Total Robot Build Rating . | . . . . Part Schematics Acquired . | . . . . Parts Built . | . . . . Authchips . | . . . . Time . | . . . . Total Part Build Rating . | . . . . Parts Repaired . | . . . . Time . | . . . . Parts Recycled . | . . . . Recycled Matter . | . . . . Retrieved Matter . | . . . . Retrieved Components . | . . . . Parts Scanalyzed . | . . . . Part Schematics Acquired . | . . . . Parts Damaged . | . . . . Bothacking | -11 -10 -10 -10 ------------ Run | Yrd Mat Min Exi Used RIF Installer . | . . . . Robots Hacked . | . . . . Non-combat . | . . . . Combat . | . . . . Robot Hacks Applied . | . . . . Relay Couplers Released . | . . . . Fabnet Peak Effective % . | . . . . Robots Rewired . | . . . . Allies Hacked . | . . . . Hacks Repelled . | . . . . Allies | -11 -10 -10 -10 -------- Run | Yrd Mat Min Exi Total Allies 1 | . . 1 . Largest Group 1 | . . 1 1 Highest-Rated Group 31 | . . 31 31 Highest-Rated Ally 31 | . . 31 31 Total Orders . | . . . . Ally Attacks 24 | . . 15 9 Total Damage 399 | . . 273 126 Kills 7 | . . 5 2 Allies Corrupted . | . . . . Allies Melted . | . . . . Intel | -11 -10 -10 -10 ------- Run | Yrd Mat Min Exi Robot Analysis Total . | . . . . Derelict Logs Recovered 1 | . . 1 . Drone Launches . | . . . . Drone Recoveries . | . . . . Exploration | -11 -10 -10 -10 ------------- Run | Yrd Mat Min Exi Turns Passed 2568 | 69 1202 1019 278 Spaces Moved 1440 | 50 695 566 129 Core 6 | 6 . . . Treads 870 | . 175 566 129 Legs 564 | 44 520 . . Wheels . | . . . . Hover . | . . . . Flight . | . . . . Fastest Speed 50 | 50 120 152 152 Average Speed 154 | 117 157 155 152 Slowest Speed 240 | 150 240 160 152 Overloaded Moves . | . . . . Propulsion Burnouts . | . . . . Robots Hopped 2 | . . 2 . Cave-ins Triggered . | . . . . Exploration Rate (%) 53 | 4 78 95 37 Regions Visited 3 Branch Regions 2 Pre-discovered Areas 2 | . . 2 . Known Exits Taken . | . . . . Unknown Exits Taken 3 | 1 1 1 . Scrap Searched 1 | . . 1 . Spaces Dug . | . . . . Terrain Destroyed . | . . . . Melee . | . . . . Projectile . | . . . . AOE . | . . . . Terrain Rammed . | . . . . Walls Destroyed . | . . . . Machines Disabled . | . . . . Actions | -11 -10 -10 -10 --------- Run | Yrd Mat Min Exi Total 1667 | 57 762 672 176 Wait 103 | . 7 74 22 Move 1433 | 49 694 561 129 Hop 2 | . . 2 . Pick Up 19 | 2 14 3 . Fast Attach 12 | 6 3 2 1 Attach 3 | . . 2 1 Detach 1 | . . 1 . Swap 17 | . 11 6 . Drop 17 | . 11 5 1 Fire 60 | . 22 16 22 Melee . | . . . . Ram . | . . . . Kick . | . . . . Crush . | . . . . Escape Stasis . | . . . . Rewire . | . . . . Trap . | . . . . Miscellaneous . | . . . . Route ------- -11/Scrapyard -10/Materials (discovered 4 exits: *Mat x3 / *Min) -10/Mines (discovered 3 exits: *Mat x2 / *Exi) -10/Exiles (discovered 1 exit: [*Min]) History --------- Turn | Location | Event 25 | -11/Scrapyard | Discovered new exit (range 16) 70 | -11/Scrapyard | Entered Materials 151 | -10/Materials | Discovered new exit (range 6) 169 | -10/Materials | Met 8R-AWN 191 | -10/Materials | Discovered new exit (range 9) 303 | -10/Materials | Build established: Mutant 353 | -10/Materials | Discovered new exit (range 14) 645 | -10/Materials | Discovered new exit (range 5) 653 | -10/Materials | Identified exit to Materials 1272 | -10/Materials | Entered Mines 1273 | -10/Mines | Followed 8R-AWN into the Mines 1406 | -10/Mines | Discovered exit to Materials (range 13) 1439 | -10/Mines | Met a Derelict testing a Signal Generator 1749 | -10/Mines | Met a Derelict who couldn't figure out how to use a Trap Extractor 2114 | -10/Mines | Learned location of Storage (-8) 2117 | -10/Mines | Discovered exit to Materials (range 6) 2206 | -10/Mines | Discovered new exit (range 5) 2291 | -10/Mines | Entered Exiles 2291 | -10/Exiles | Accompanied by 1 ally 2322 | -10/Exiles | Discovered new exit (range 15) 2353 | -10/Exiles | Welcomed by 8R-AWN 2377 | -10/Exiles | Met EX-HEX 2432 | -10/Exiles | Met EX-BIN 2452 | -10/Exiles | Aligned with FarCom system 2453 | -10/Exiles | Given EX-Vault access code 2474 | -10/Exiles | Attacked by the Exiles 2532 | -10/Exiles | Core integrity fell below 50% 2558 | -10/Exiles | Core integrity fell below 20% 2569 | -10/Exiles | Destroyed by 8R-AWN with 8R-AWN's Boregun Last Messages --------------- 02546_ Penetrated by HV Slug. 02547_ 8R-AWN knocked back. 02548_ Overheating: System interference. 02548_ Particle Gun temporarily disabled. 02550_ Penetrated by HV Slug. 02552_ Critical hit (Destroy). 02552_ Adv. Treads destroyed. 02552_ Penetrated by HV Slug. 02557_ Overheating: System interference. 02557_ Flak Cannon temporarily disabled. 02557_ Penetrated by HV Slug. 02560_ Critical hit (Destroy). 02560_ Lgt. Treads destroyed. 02562_ Penetrated by HV Slug. 02562_ Critical hit (Destroy). 02562_ Lgt. Ion Engine destroyed. 02562_ Penetrated by HV Slug. 02567_ Critical hit (Destroy). 02567_ Flak Cannon destroyed. 02567_ Penetrated by HV Slug. Map ----- +----------------------------------------------------+ | ?????????????????????????????????????????????????? | | ?????????????????????????????????????????????????? | | ?????????????????????????????????????????????????? | | ?????????????????????????????????????????????????? | | ?????????????????????????????????????????????????? | | ?????????????????????????????????????????????????? | | ?????????????????????????????????????????????????? | | ???????????? ????????????????????????????????????? | | ????????????? ??????????????????????????????????? | | ?????????????# ???????????????????????????????? | | ?????????????# ??#########???????????????????? | | ?????????????# ??#"""""""#???????????????????? | | ?????????????# ??#"""""""#???????????????????? | | ?????????????# ??#"""""""#???????????????????? | | ????????????## ###"" """"#???????????????????? | | ????????????#" """"#???????????????????? | | ????????????#" """#???????????????????? | | ????????????#" """#????#??????????????? | | ????????????#" """#???""??????????????? | | ????????????#" """##?"""#?????????????? | | ????????????#" g """;# """##????????????? | | ????????????## " ;#????????????? | | ?????????????# %% " ;;;;;;;#????????????? | | ?????????????#" ! ; #????????????? | | ?????????????#" %[ ; ; #????????????? | | ?????????????#" """""@ ; ; #????????????? | | ????????????##" #######;;;; ; #??????????? | | ???????????##"" #?????## ;;;;;; ## #????????? | | ?????????###"" #??????? ##????????????? | | ????????"""""" ##??????## #????????????? | | ???????"" " "" ##???#####;######????????????? | | ??????""" " #####""""" """##????????????? | | ????? " " """ """##???????????? | | ??? "" #???????????? | | ??? " ""#???????????? | | ??? "a"#???????????# | | ???? " "##?????????## | | ???? ""###???????#" | | ???? """""" """#??????##" | | ????? ######""" "#????### | | ????? ""#?????#####""" ##???# | | ???????"???????????##""" ##?## | | ????????????????????#"""" ### | | ????????????????????#"" | | ?????????????????????""" # | | ???????????????????? ""# | | ??????????????????? #"""## | | ??????????????????? ######? | | ??????????????????? ##?????? | | ???????????????????? " ##??????? | +----------------------------------------------------+ Best States ------------- Heat Dissipation 25 Energy Generation 10 Energy Capacity 125 Matter Stores 300 Matter Capacity 300 Sight Range 16 Terrain Scan Density 10 Armor Coverage 225 Evasion (%) 55 Recoil Reduction 2 Item Schematics ----------------- None Robot Schematics ------------------ None Fabricated ------------ Nothing Alien Tech Used ----------------- None Achievements -------------- None Challenges ------------ None Game ------ Seed LongswordDirtyConstruct Manual? 0 Play Time 00:47:22 Cumulative 8.0 hours Start 2024.08.30 @ 09:32:47 End 2024.08.30 @ 10:36:43 Sessions 1 Manual Loads 0 Difficulty Rogue Special Mode None Game No. 5 Rogue 5 Adventurer 0 Explorer 0 Win Type - Total 0 Types 0/0/0/0/0/0/0/0/0 Lore% 5 Gallery% 7 Achievement% 30 Wizard Run 0 Options --------- Layout 0 ASCII 0 Keyboard 0 Movement Mouse Keybinds 0 Fullscreen 1 Font 16/SmallcapsGlow Map View 37x27 Zoom Use 83% Tactical HUD 1 Map Filters NONE Filters NONE Steam 1 RUN: 8b002946-3e0c-4859-a06d-a62dac5375de